fUST/lending_fUST_20251209
["ID","MTS","AMOUNT","RATE_DAILY","PERIOD"]
[397755054,1765225652087,-816.79478613,6.34e-05,2]
[397755056,1765225746097,-1801.9489462,6.34e-05,2]
[397755057,1765225746118,-54.70289708,6.404e-05,2]
[397755078,1765225761082,-4602.35934533,6.404e-05,2]
[397755079,1765225773080,-342.93775759,6.404e-05,2]
[397755080,1765225773102,-147.06224241,6.502e-05,2]
[397755113,1765225832066,-1200.0,6.435e-05,2]
[397755114,1765225832076,-5000.0,6.436e-05,2]
[397755115,1765225832085,-512.0,6.436e-05,2]
[397755116,1765225832095,-125.32031011,6.502e-05,2]
[397755117,1765225832104,-300.0,6.564e-05,2]
[397755118,1765225832113,-300.0,6.564e-05,2]
[397755119,1765225832122,-300.0,6.564e-05,2]
[397755120,1765225832131,-300.0,6.564e-05,2]
[397755121,1765225832140,-300.0,6.564e-05,2]
[397755122,1765225832149,-300.0,6.564e-05,2]
[397755123,1765225832159,-300.0,6.564e-05,2]
[397755124,1765225832168,-300.0,6.564e-05,2]
[397755125,1765225832177,-300.0,6.564e-05,2]
[397755126,1765225832186,-300.0,6.564e-05,2]
[397755127,1765225832196,-300.0,6.564e-05,2]
[397755128,1765225832204,-300.0,6.564e-05,2]
[397755129,1765225832213,-300.0,6.564e-05,2]
[397755130,1765225832222,-948.39156455,6.897e-05,2]
[397755131,1765225832231,-300.0,6.916e-05,2]
[397755132,1765225832241,-932.0,6.917e-05,2]
[397755133,1765225832250,-294.65480123,6.918e-05,2]
[397755134,1765225832260,-308.9310791,6.918e-05,2]
[397755135,1765225832269,-1313.99,7.068e-05,2]
[397755136,1765225832279,-214.8603939,7.152e-05,2]
[397755137,1765225832288,-250.0,7.347e-05,3]
[397755138,1765225832298,-2627.98,7.404e-05,2]
[397755139,1765225832307,-500.0,7.486e-05,2]
[397755140,1765225832316,-500.0,7.486e-05,2]
[397755141,1765225832326,-500.0,7.486e-05,2]
[397755142,1765225832335,-507.47907333,7.486e-05,2]
[397755143,1765225832344,-500.0,7.486e-05,2]
[397755144,1765225832353,-500.0,7.486e-05,2]
[397755145,1765225832362,-500.0,7.486e-05,2]
[397755146,1765225832372,-500.0,7.486e-05,2]
[397755147,1765225832381,-500.0,7.486e-05,2]
[397755148,1765225832391,-500.0,7.486e-05,2]
[397755149,1765225832400,-220.023,7.494e-05,2]
[397755150,1765225832410,-250.0,7.494e-05,2]
[397755151,1765225832630,-55259.8902434,7.544e-05,2]
[397755164,1765225838058,-706.72910092,6.498e-05,2]
[397755165,1765225838068,-955.22253843,6.498e-05,2]
[397755166,1765225838082,-1020.48504317,6.498e-05,2]
[397755167,1765225838093,-2317.56331748,6.498e-05,2]
[397755168,1765225838102,-12.39013194,6.564e-05,2]
[397755169,1765225838113,-287.60986806,6.564e-05,2]
[397755170,1765225838122,-270.0884559,6.564e-05,2]
[397755171,1765225838133,-29.9115441,6.564e-05,2]
[397755172,1765225838142,-269.44130767,7.025e-05,2]
[397755173,1765225838152,-454.72627961,7.486e-05,2]
[397755174,1765225838161,-500.0,7.486e-05,2]
[397755175,1765225838170,-500.0,7.486e-05,2]
[397755176,1765225838180,-166.06818505,7.544e-05,2]
[397755177,1765225838191,-1517.68091614,7.544e-05,2]
[397755178,1765225838203,-3632.46893236,7.544e-05,2]
[397755179,1765225838222,-4717.75764161,7.544e-05,2]
[397755180,1765225838233,-418.70525394,7.544e-05,2]
[397755181,1765225838244,-356.87099803,7.544e-05,2]
[397755182,1765225838255,-609.87396447,7.544e-05,2]
[397755183,1765225838266,-2694.248208,7.544e-05,2]
[397755192,1765225840040,-1757.62581845,7.544e-05,2]
[397755195,1765225840052,-2104.842238,7.544e-05,2]
[397755197,1765225840063,-11291.44,7.544e-05,2]
[397755202,1765225840101,-29068.36065008,7.544e-05,2]
[397755204,1765225840112,-18376.8,7.544e-05,2]
[397755481,1765225843007,-631.8891262,7.544e-05,2]
[397755483,1765225843019,-1147.5,7.544e-05,2]
[397755582,1765225843987,-3042.04970034,7.544e-05,2]
[397755789,1765225846027,-677.29003737,7.544e-05,2]
[397755793,1765225846059,-60.66091462,7.544e-05,2]
[397755798,1765225846086,-4078.02203934,7.544e-05,2]
[397755800,1765225846097,-1632.41982005,7.544e-05,2]
[397755803,1765225846119,-19987.08431802,7.544e-05,2]
[397762416,1765226061469,1032.0,0.000203,120]
[397762428,1765226284549,175.89,5.006e-05,2]
[397762429,1765226284858,175.89,5.006e-05,2]
[397762434,1765226745121,-4700.63611739,6.642e-05,2]
[397762435,1765226842070,-5000.0,6.51e-05,2]
[397762436,1765226842090,-5000.0,6.576e-05,2]
[397762437,1765226842110,-267.19905886,6.675e-05,2]
[397762438,1765226842130,-1200.0,6.708e-05,2]
[397762439,1765226842149,-300.0,6.81e-05,2]
[397762440,1765226842172,-518.0,6.914e-05,2]
[397762441,1765226842192,-633.59248007,6.918e-05,2]
[397762442,1765226842211,-1140.46646413,6.918e-05,2]
[397762443,1765226842232,-411.7927353,6.918e-05,2]
[397762444,1765226851373,-1979.31943481,6.445e-05,2]
[397762445,1765226945086,-199.50699477,6.381e-05,2]
[397762446,1765226959081,-4800.49300523,6.381e-05,2]
[397762447,1765226959101,-3020.68056519,6.445e-05,2]
[397762448,1765226959120,-920.0,6.917e-05,2]
[397762449,1765226959140,-1343.95795591,6.918e-05,2]
[397762473,1765227032436,-1200.0,6.847e-05,2]
[397762474,1765227032447,-5000.0,6.848e-05,2]
[397762475,1765227032457,-517.0,6.848e-05,2]
[397762476,1765227032467,-271.74524503,6.918e-05,2]
[397762477,1765227032476,-195.37861542,6.918e-05,2]
[397762478,1765227032487,-351.32982624,6.918e-05,2]
[397762479,1765227032497,-250.0,7.346e-05,3]
[397762480,1765227032506,-1437.353356,7.365e-05,2]
[397762481,1765227032516,-300.0,7.378e-05,2]
[397762482,1765227032526,-300.0,7.378e-05,2]
[397762483,1765227032535,-161.0,7.378e-05,2]
[397762484,1765227032544,-1281.85,7.392e-05,2]
[397762485,1765227032553,-176.018,7.407e-05,2]
[397762486,1765227032563,-433.8776034,7.418e-05,2]
[397762487,1765227032572,-332.61877577,7.443e-05,2]
[397762488,1765227032582,-500.0,7.443e-05,2]
[397762489,1765227032591,-500.0,7.443e-05,2]
[397762490,1765227032600,-500.0,7.443e-05,2]
[397762491,1765227032609,-235.60170719,7.443e-05,2]
[397762492,1765227032619,-500.0,7.443e-05,2]
[397762493,1765227032628,-606.08069774,7.443e-05,2]
[397762494,1765227032638,-500.0,7.443e-05,2]
[397762495,1765227032647,-500.0,7.443e-05,2]
[397762496,1765227032657,-96.14102212,7.443e-05,2]
[397762497,1765227032670,-409.37249472,7.443e-05,2]
[397762498,1765227032680,-500.0,7.443e-05,2]
[397762499,1765227032690,-500.0,7.443e-05,2]
[397762500,1765227032700,-500.0,7.443e-05,2]
[397762501,1765227032711,-377.65195894,7.443e-05,2]
[397762502,1765227032720,-35302.0468034,7.444e-05,2]
[397762503,1765227032732,-1036.39175543,7.444e-05,2]
[397762546,1765227038262,-729.41544042,7.444e-05,2]
[397762762,1765227040355,-7809.2039019,7.444e-05,2]
[397762769,1765227040414,-100.75497624,7.444e-05,2]
[397763334,1765227046143,-600.0,7.444e-05,2]
[397763342,1765227046201,-7471.87556415,7.444e-05,2]
[397763348,1765227046261,-56733.99962221,7.444e-05,2]
[397776694,1765227943093,-470.06361174,6.534e-05,2]
[397776696,1765228028087,-2682.48901206,6.469e-05,2]
[397776697,1765228034083,-391.15448855,6.469e-05,2]
[397776698,1765228050080,-269.77024049,6.404e-05,2]
[397776699,1765228084043,246.25,5.006e-05,2]
[397776700,1765228147123,-637.04451851,6.404e-05,2]
[397776701,1765228148091,-980.0,6.404e-05,2]
[397776702,1765228158099,-642.08345576,6.404e-05,2]
[397776712,1765228232147,-1273.65178104,6.277e-05,2]
[397776713,1765228232161,-2445.36144864,6.277e-05,2]
[397776714,1765228232221,-1243.14596154,6.277e-05,2]
[397776715,1765228232230,-4761.52276658,6.34e-05,2]
[397776716,1765228232241,-238.47723342,6.34e-05,2]
[397776717,1765228232250,-511.0,6.34e-05,2]
[397776718,1765228232259,-261.85507768,6.437e-05,2]
[397776719,1765228232268,-300.0,6.466e-05,2]
[397776720,1765228232276,-300.0,6.466e-05,2]
[397776721,1765228232285,-300.0,6.466e-05,2]
[397776722,1765228232294,-300.0,6.466e-05,2]
[397776723,1765228232303,-300.0,6.466e-05,2]
[397776724,1765228232312,-1302.89,7.124e-05,2]
[397776725,1765228232321,-280.0,7.311e-05,2]
[397776726,1765228232330,-300.0,7.311e-05,2]
[397776727,1765228232339,-9764.511039,7.313e-05,2]
[397776728,1765228232349,-176.019,7.343e-05,2]
[397776729,1765228232357,-299.77441939,7.343e-05,2]
[397776730,1765228232367,-399.06136486,7.343e-05,2]
[397776731,1765228232376,-500.0,7.343e-05,2]
[397776732,1765228232385,-500.0,7.343e-05,2]
[397776733,1765228232394,-463.63363136,7.343e-05,2]
[397776734,1765228232403,-358.60031225,7.343e-05,2]
[397776735,1765228232412,-88122.74559648,7.344e-05,2]
[397776829,1765228238380,-300.0,6.466e-05,2]
[397776830,1765228238390,-300.0,6.466e-05,2]
[397776831,1765228238399,-300.0,6.466e-05,2]
[397776832,1765228238408,-300.0,6.466e-05,2]
[397776833,1765228238417,-300.0,6.466e-05,2]
[397776834,1765228238426,-300.0,6.466e-05,2]
[397776835,1765228238436,-300.0,6.466e-05,2]
[397776836,1765228238445,-300.0,6.466e-05,2]
[397776837,1765228238454,-300.0,6.466e-05,2]
[397776838,1765228238463,-300.0,6.466e-05,2]
[397776839,1765228238472,-1819.5,7.344e-05,2]
[397776840,1765228238483,-16844.9999999,7.344e-05,2]
[397776841,1765228238494,-338.84055212,7.344e-05,2]
[397776842,1765228238509,-557.13363298,7.344e-05,2]
[397776843,1765228238521,-333.71912776,7.344e-05,2]
[397776845,1765228238542,-781983.06109076,7.344e-05,2]
[397776846,1765228238551,-250.0,7.345e-05,3]
[397776847,1765228238561,-175.89354135,7.405e-05,2]
[397776848,1765228238571,-250.0,7.443e-05,2]
[397776849,1765228238580,-2605.78,7.463e-05,2]
[397776850,1765228238590,-600.0,7.49e-05,2]
[397776851,1765228238599,-500.0,7.497e-05,2]
[397776852,1765228238608,-500.0,7.497e-05,2]
[397776853,1765228238618,-151.0,7.497e-05,2]
[397776855,1765228238627,-500.0,7.497e-05,2]
[397776857,1765228238637,-151.0,7.497e-05,2]
[397776859,1765228238648,-500.0,7.497e-05,2]
[397776861,1765228238659,-151.0,7.497e-05,2]
[397776863,1765228238668,-559.0,7.497e-05,2]
[397776865,1765228238678,-971.42888711,7.497e-05,2]
[397776867,1765228238688,-250.0,7.497e-05,2]
[397776869,1765228238698,-250.0,7.497e-05,2]
[397776871,1765228238708,-250.0,7.497e-05,2]
[397776873,1765228238718,-500.0,7.497e-05,2]
[397776875,1765228238730,-250.0,7.497e-05,2]
[397776877,1765228238739,-250.0,7.497e-05,2]
[397776879,1765228238748,-192.21725493,7.497e-05,2]
[397776881,1765228238758,-551.43747706,7.497e-05,2]
[397776883,1765228238767,-160.0,7.497e-05,2]
[397776908,1765228238997,-250.0,7.497e-05,2]
[397776910,1765228239007,-500.0,7.497e-05,2]
[397776912,1765228239017,-160.0,7.497e-05,2]
[397776914,1765228239027,-250.0,7.497e-05,2]
[397776916,1765228239037,-500.0,7.497e-05,2]
[397776918,1765228239047,-250.0,7.497e-05,2]
[397776920,1765228239057,-160.0,7.497e-05,2]
[397776922,1765228239067,-250.0,7.497e-05,2]
[397776924,1765228239077,-500.0,7.497e-05,2]
[397776926,1765228239086,-250.0,7.497e-05,2]
[397776928,1765228239096,-160.0,7.497e-05,2]
[397776930,1765228239105,-250.0,7.497e-05,2]
[397776932,1765228239115,-250.0,7.497e-05,2]
[397776934,1765228239124,-160.0,7.497e-05,2]
[397776936,1765228239135,-500.0,7.497e-05,2]
[397776938,1765228239144,-250.0,7.497e-05,2]
[397776940,1765228239154,-196.68267047,7.497e-05,2]
[397776943,1765228239163,-500.0,7.497e-05,2]
[397776944,1765228239172,-500.0,7.497e-05,2]
[397776946,1765228239183,-250.0,7.497e-05,2]
[397776948,1765228239192,-252.82840663,7.497e-05,2]
[397776950,1765228239201,-500.0,7.497e-05,2]
[397776953,1765228239211,-500.0,7.497e-05,2]
[397776955,1765228239220,-250.0,7.497e-05,2]
[397776957,1765228239229,-500.0,7.497e-05,2]
[397776959,1765228239239,-500.0,7.497e-05,2]
[397776960,1765228239248,-250.0,7.497e-05,2]
[397776962,1765228239257,-240.23590508,7.497e-05,2]
[397776965,1765228239268,-500.0,7.497e-05,2]
[397776967,1765228239278,-500.0,7.497e-05,2]
[397776969,1765228239287,-250.0,7.497e-05,2]
[397776971,1765228239295,-250.0,7.497e-05,2]
[397776973,1765228239304,-250.0,7.497e-05,2]
[397776974,1765228239313,-250.0,7.497e-05,2]
[397776976,1765228239322,-250.0,7.497e-05,2]
[397776977,1765228239331,-250.0,7.497e-05,2]
[397776978,1765228239340,-500.0,7.497e-05,2]
[397776979,1765228239349,-500.0,7.497e-05,2]
[397776980,1765228239358,-500.0,7.497e-05,2]
[397776981,1765228239367,-500.0,7.497e-05,2]
[397776982,1765228239376,-500.0,7.497e-05,2]
[397776983,1765228239385,-500.0,7.497e-05,2]
[397776984,1765228239394,-500.0,7.497e-05,2]
[397776985,1765228239403,-500.0,7.497e-05,2]
[397776986,1765228239412,-500.0,7.497e-05,2]
[397776987,1765228239421,-500.0,7.497e-05,2]
[397776988,1765228239430,-500.0,7.497e-05,2]
[397776989,1765228239439,-457.65784768,7.497e-05,2]
[397776990,1765228239779,-42.34215232,7.497e-05,2]
[397776991,1765228239788,-500.0,7.497e-05,2]
[397776992,1765228239797,-500.0,7.497e-05,2]
[397776993,1765228239807,-2487.15318209,7.497e-05,2]
[397776995,1765228239816,-980.23309777,7.538e-05,3]
[397776997,1765228239825,-662.87853022,7.604e-05,2]
[397776999,1765228239834,-500.0,7.634e-05,2]
[397777001,1765228239843,-500.0,7.634e-05,2]
[397777003,1765228239851,-500.0,7.634e-05,2]
[397777005,1765228239861,-151.0,7.634e-05,2]
[397777007,1765228239870,-500.0,7.634e-05,2]
[397777009,1765228239879,-198.0,7.634e-05,2]
[397777011,1765228239888,-559.0,7.634e-05,2]
[397777013,1765228239897,-3558.92988729,7.713e-05,2]
[397777015,1765228239906,-201.97441782,7.743e-05,2]
[397777017,1765228239915,-500.0,7.771e-05,2]
[397777019,1765228239925,-500.0,7.771e-05,2]
[397777021,1765228239934,-500.0,7.771e-05,2]
[397777022,1765228239943,-220.07835471,7.771e-05,2]
[397777023,1765228239952,-502.20646407,7.771e-05,2]
[397777024,1765228239961,-559.0,7.771e-05,2]
[397777026,1765228239971,-1193.1813544,7.799e-05,2]
[397777028,1765228239980,-3908.67,7.803e-05,2]
[397777029,1765228239990,-730.290055,7.805e-05,2]
[397777031,1765228239999,-730.290055,7.805e-05,2]
[397777033,1765228240009,-730.290055,7.805e-05,2]
[397777035,1765228240018,-730.290055,7.805e-05,2]
[397777037,1765228240027,-574.59,7.807e-05,2]
[397777039,1765228240036,-500.0,7.908e-05,2]
[397777041,1765228240046,-500.0,7.908e-05,2]
[397777043,1765228240055,-500.0,7.908e-05,2]
[397777045,1765228240064,-559.0,7.908e-05,2]
[397777047,1765228240073,-174.87269352,7.977e-05,2]
[397777049,1765228240082,-2119.09008541,7.994e-05,2]
[397777051,1765228240092,-240.0,8.042e-05,2]
[397777053,1765228240101,-500.0,8.045e-05,2]
[397777055,1765228240110,-500.0,8.045e-05,2]
[397777057,1765228240120,-500.0,8.045e-05,2]
[397777059,1765228240129,-559.0,8.045e-05,2]
[397777061,1765228240138,-656.10622783,8.045e-05,2]
[397777063,1765228240150,-9.52492675,8.091e-05,2]
[397777066,1765228240162,-2145.47507325,8.091e-05,2]
[397777068,1765228240171,-631.0,8.091e-05,2]
[397777070,1765228240180,-415.0,8.091e-05,2]
[397777072,1765228240190,-5211.57,8.142e-05,2]
[397777074,1765228240198,-3558.92988729,8.173e-05,2]
[397777076,1765228240207,-500.0,8.182e-05,2]
[397777078,1765228240217,-291.00527214,8.182e-05,2]
[397777080,1765228240226,-500.0,8.182e-05,2]
[397777082,1765228240235,-559.0,8.182e-05,2]
[397777084,1765228240244,-200.0,8.21e-05,2]
[397777086,1765228240253,-200.0,8.21e-05,3]
[397777088,1765228240262,-730.290055,8.218e-05,2]
[397777090,1765228240271,-730.290055,8.218e-05,2]
[397777092,1765228240279,-730.290055,8.218e-05,2]
[397777094,1765228240288,-730.290055,8.218e-05,2]
[397777096,1765228240297,-169.730852,8.219e-05,2]
[397777098,1765228240307,-1890.909232,8.219e-05,2]
[397777100,1765228240317,-276.51320378,8.219e-05,2]
[397777102,1765228240329,-223.48679622,8.219e-05,2]
[397777104,1765228240338,-500.0,8.219e-05,2]
[397777106,1765228240347,-166.66525523,8.219e-05,2]
[397777108,1765228240358,-281.00478041,8.219e-05,2]
[397777138,1765228240630,-50.32998017,8.219e-05,2]
[397777140,1765228240639,-519.44903107,8.219e-05,2]
[397777142,1765228240650,-453.8182856,8.219e-05,2]
[397777144,1765228240663,-46.1817144,8.219e-05,2]
[397777147,1765228240673,-257.4082856,8.219e-05,2]
[397777149,1765228240684,-242.5917144,8.219e-05,2]
[397777151,1765228240695,-8.27097889,8.219e-05,2]
[397777416,1765228243406,-5000.0,8.137e-05,2]
[397777418,1765228243416,-491.72902111,8.219e-05,2]
[397777420,1765228243425,-232.3479746,8.219e-05,2]
[397777422,1765228243435,-500.0,8.219e-05,2]
[397777424,1765228243444,-734.05,8.219e-05,2]
[397777426,1765228243454,-500.0,8.219e-05,2]
[397777428,1765228243463,-535.45,8.219e-05,2]
[397777430,1765228243473,-500.0,8.219e-05,2]
[397777432,1765228243482,-547.52451314,8.219e-05,2]
[397777434,1765228243492,-500.0,8.219e-05,2]
[397777436,1765228243503,-500.0,8.219e-05,2]
[397777438,1765228243512,-500.0,8.219e-05,2]
[397777440,1765228243523,-500.0,8.219e-05,2]
[397777442,1765228243532,-556.09,8.219e-05,2]
[397777444,1765228243542,-500.0,8.219e-05,2]
[397777446,1765228243551,-508.47,8.219e-05,2]
[397777448,1765228243563,-500.0,8.219e-05,2]
[397777451,1765228243572,-178.97472303,8.219e-05,2]
[397777453,1765228243581,-500.0,8.219e-05,2]
[397777455,1765228243591,-500.0,8.219e-05,2]
[397777456,1765228243600,-500.0,8.219e-05,2]
[397777459,1765228243609,-1277.63,8.219e-05,2]
[397777461,1765228243620,-500.0,8.219e-05,2]
[397777463,1765228243630,-500.0,8.219e-05,2]
[397777465,1765228243639,-500.0,8.219e-05,2]
[397777468,1765228243652,-573.67,8.219e-05,2]
[397777470,1765228243662,-1019.68,8.219e-05,2]
[397777472,1765228243671,-500.0,8.219e-05,2]
[397777474,1765228243680,-500.0,8.219e-05,2]
[397777476,1765228243691,-560.02,8.219e-05,2]
[397777478,1765228243700,-536.23912178,8.219e-05,2]
[397777480,1765228243710,-500.0,8.219e-05,2]
[397777482,1765228243719,-500.0,8.219e-05,2]
[397777484,1765228243730,-500.0,8.219e-05,2]
[397777486,1765228243740,-425.5481909,8.219e-05,2]
[397777488,1765228243749,-783.47,8.219e-05,2]
[397777490,1765228243759,-866.54,8.219e-05,2]
[397777492,1765228243768,-500.0,8.219e-05,2]
[397777494,1765228243777,-500.0,8.219e-05,2]
[397777496,1765228243787,-500.0,8.219e-05,2]
[397777498,1765228243796,-553.12,8.219e-05,2]
[397777500,1765228243806,-500.0,8.219e-05,2]
[397777502,1765228243815,-500.0,8.219e-05,2]
[397777504,1765228243825,-508.78,8.219e-05,2]
[397777506,1765228243834,-500.0,8.219e-05,2]
[397777508,1765228243846,-500.0,8.219e-05,2]
[397777510,1765228243855,-500.0,8.219e-05,2]
[397777512,1765228243865,-500.0,8.219e-05,2]
[397777514,1765228243874,-565.74,8.219e-05,2]
[397777516,1765228243883,-628.6,8.219e-05,2]
[397777518,1765228243893,-500.0,8.219e-05,2]
[397777520,1765228243902,-500.0,8.219e-05,2]
[397777522,1765228243912,-500.0,8.219e-05,2]
[397777524,1765228243921,-318.17780289,8.219e-05,2]
[397777769,1765228246287,-181.82219711,8.219e-05,2]
[397777770,1765228246298,-510.08,8.219e-05,2]
[397777771,1765228246307,-500.0,8.219e-05,2]
[397777772,1765228246316,-242.81149132,8.219e-05,2]
[397777773,1765228246328,-257.18850868,8.219e-05,2]
[397777774,1765228246336,-500.0,8.219e-05,2]
[397777775,1765228246346,-500.0,8.219e-05,2]
[397777776,1765228246354,-500.0,8.219e-05,2]
[397777777,1765228246363,-500.0,8.219e-05,2]
[397777778,1765228246372,-371.94861138,8.219e-05,2]
[397777779,1765228246381,-500.69568965,8.219e-05,2]
[397777780,1765228246389,-186.97500646,8.219e-05,2]
[397777781,1765228246398,-1000.0,8.219e-05,2]
[397777782,1765228246407,-500.0,8.219e-05,2]
[397777783,1765228246416,-660.08,8.219e-05,2]
[397777784,1765228246425,-1509.68,8.219e-05,2]
[397777785,1765228246435,-500.0,8.219e-05,2]
[397777786,1765228246444,-500.0,8.219e-05,2]
[397777787,1765228246452,-501.96095038,8.219e-05,2]
[397777788,1765228246462,-500.0,8.219e-05,2]
[397777789,1765228246472,-398.69377421,8.219e-05,2]
[397777790,1765228246481,-500.0,8.219e-05,2]
[397777792,1765228246490,-500.0,8.219e-05,2]
[397777793,1765228246499,-500.0,8.219e-05,2]
[397777795,1765228246508,-957.71,8.219e-05,2]
[397777797,1765228246518,-527.11,8.219e-05,2]
[397777799,1765228246527,-500.0,8.219e-05,2]
[397777802,1765228246537,-500.0,8.219e-05,2]
[397777803,1765228246546,-567.87,8.219e-05,2]
[397777806,1765228246556,-500.0,8.219e-05,2]
[397777808,1765228246566,-500.0,8.219e-05,2]
[397777810,1765228246575,-500.0,8.219e-05,2]
[397777812,1765228246584,-500.0,8.219e-05,2]
[397777814,1765228246592,-568.97860934,8.219e-05,2]
[397777816,1765228246602,-500.0,8.219e-05,2]
[397777818,1765228246611,-500.0,8.219e-05,2]
[397777819,1765228246620,-500.0,8.219e-05,2]
[397777822,1765228246630,-500.0,8.219e-05,2]
[397777823,1765228246639,-500.16162568,8.219e-05,2]
[397777825,1765228246652,-500.0,8.219e-05,2]
[397777828,1765228246662,-500.0,8.219e-05,2]
[397777830,1765228246672,-500.0,8.219e-05,2]
[397777832,1765228246682,-500.0,8.219e-05,2]
[397777833,1765228246693,-500.0,8.219e-05,2]
[397777836,1765228246703,-500.0,8.219e-05,2]
[397777837,1765228246712,-500.0,8.219e-05,2]
[397777839,1765228246722,-1036.36,8.219e-05,2]
[397777841,1765228246733,-500.0,8.219e-05,2]
[397777843,1765228246742,-500.0,8.219e-05,2]
[397777845,1765228246752,-952.02,8.219e-05,2]
[397777847,1765228246761,-500.0,8.219e-05,2]
[397777849,1765228246770,-500.0,8.219e-05,2]
[397777851,1765228246780,-682.32,8.219e-05,2]
[397777854,1765228246791,-586.32,8.219e-05,2]
[397777856,1765228246801,-500.0,8.219e-05,2]
[397777858,1765228246812,-500.0,8.219e-05,2]
[397777860,1765228246821,-537.01,8.219e-05,2]
[397777862,1765228246830,-625.5,8.219e-05,2]
[397777864,1765228246840,-892.56,8.219e-05,2]
[397777866,1765228246849,-662.85,8.219e-05,2]
[397777867,1765228246858,-500.0,8.219e-05,2]
[397777869,1765228246868,-546.12,8.219e-05,2]
[397777872,1765228246878,-501.09226129,8.219e-05,2]
[397777873,1765228246887,-500.0,8.219e-05,2]
[397777875,1765228246896,-500.0,8.219e-05,2]
[397777877,1765228246906,-671.9,8.219e-05,2]
[397777879,1765228246915,-500.39581025,8.219e-05,2]
[397777881,1765228246924,-451.30310843,8.219e-05,2]
[397777885,1765228246950,-305.00000001,8.219e-05,2]
[397787451,1765229144111,-375.67382565,5.468e-05,2]
[397787453,1765229216063,168.83746827,0.00010448,7]
[397787454,1765229231089,-268.2489012,5.305e-05,2]
[397787458,1765229347090,-4731.7510988,5.305e-05,2]
[397787459,1765229347111,-272.81670687,5.332e-05,2]
[397787460,1765229347131,-1329.60495163,5.359e-05,2]
[397787461,1765229347151,-1420.48877234,5.413e-05,2]
[397787462,1765229347171,-504.0,5.807e-05,2]
[397787463,1765229347191,-368.0,5.92e-05,2]
[397787464,1765229347211,-300.0,5.92e-05,2]
[397787465,1765229347232,-1200.0,5.921e-05,2]
[397787466,1765229347256,-300.0,5.922e-05,2]
[397787467,1765229347278,-300.0,5.922e-05,2]
[397787468,1765229347303,-232.82302756,5.922e-05,2]
[397787469,1765229352089,-1801.9489462,5.863e-05,2]
[397787470,1765229352113,-67.17697244,5.922e-05,2]
[397787471,1765229352136,-300.0,5.922e-05,2]
[397787472,1765229352160,-300.0,5.922e-05,2]
[397787473,1765229352184,-300.0,5.922e-05,2]
[397787474,1765229352207,-300.0,5.922e-05,2]
[397787475,1765229352231,-300.0,5.922e-05,2]
[397787476,1765229352256,-300.0,5.922e-05,2]
[397787477,1765229352283,-300.0,5.922e-05,2]
[397787478,1765229352309,-300.0,5.922e-05,2]
[397787479,1765229352332,-300.0,5.922e-05,2]
[397787480,1765229352355,-300.0,5.922e-05,2]
[397787481,1765229352377,-300.0,5.922e-05,2]
[397787482,1765229352412,-300.0,5.922e-05,2]
[397787483,1765229352435,-493.76275236,6.167e-05,2]
[397787484,1765229356142,-2578.56758194,6.167e-05,2]
[397787485,1765229356169,-523.85249672,6.287e-05,2]
[397787486,1765229359090,-76.14750328,6.287e-05,2]
[397787487,1765229359112,-420.0,6.512e-05,2]
[397787488,1765229359133,-307.68306344,6.678e-05,2]
[397787489,1765229359153,-960.63486555,6.712e-05,2]
[397787490,1765229359176,-720.0,6.916e-05,2]
[397787491,1765229359202,-74077.11540809,7.144e-05,2]
[397787492,1765229367075,-5000.0,7.073e-05,2]
[397787493,1765229367103,-117142.69456883,7.144e-05,2]
[397787494,1765229403423,160.0,5.6e-07,2]
[397787495,1765229404480,160.0,5.6e-07,2]
[397787496,1765229405504,160.0,5.6e-07,2]
[397787497,1765229407061,160.0,5.6e-07,2]
[397787545,1765229432863,-677.03742925,7.073e-05,2]
[397787546,1765229432887,-4322.96257075,7.073e-05,2]
[397787547,1765229432898,-520.0,7.073e-05,2]
[397787548,1765229432907,-300.0,7.143e-05,2]
[397787549,1765229432916,-9363.85184589,7.144e-05,2]
[397787550,1765229432933,-874.8239084,7.144e-05,2]
[397787552,1765229438479,-500.0,7.143e-05,2]
[397787553,1765229438488,-500.0,7.143e-05,2]
[397787554,1765229438497,-500.0,7.143e-05,2]
[397787555,1765229438506,-500.0,7.143e-05,2]
[397787557,1765229438516,-500.0,7.143e-05,2]